fUSD/lending_fUSD_20260622
["ID","MTS","AMOUNT","RATE_DAILY","PERIOD"]
[425988635,1782077441000,-500.0,0.00025384,2]
[425988628,1782077441000,-500.0,0.00025384,2]
[425988636,1782077441000,-500.0,0.00025384,2]
[425988631,1782077441000,-500.0,0.00025384,2]
[425988632,1782077441000,-500.0,0.00025384,2]
[425988630,1782077441000,-500.0,0.00025384,2]
[425988637,1782077441000,-500.0,0.00025384,2]
[425988603,1782077441000,-500.0,0.00025384,2]
[425988621,1782077441000,-500.0,0.00025384,2]
[425988611,1782077441000,-500.0,0.00025384,2]
[425988579,1782077441000,-9619.22521365,0.00025381,2]
[425988610,1782077441000,-500.0,0.00025384,2]
[425988577,1782077441000,-11795.01599014,0.00025197,2]
[425988586,1782077441000,-500.0,0.00025384,2]
[425988582,1782077441000,-500.0,0.00025384,2]
[425988589,1782077441000,-500.0,0.00025384,2]
[425988578,1782077441000,-551.07975972,0.00025266,2]
[425988581,1782077441000,-500.0,0.00025384,2]
[425988580,1782077441000,-500.0,0.00025383,2]
[425988588,1782077441000,-500.0,0.00025384,2]
[425988584,1782077441000,-565.0,0.00025384,2]
[425988583,1782077441000,-500.0,0.00025384,2]
[425988585,1782077441000,-500.0,0.00025384,2]
[425988587,1782077441000,-500.0,0.00025384,2]
[425988590,1782077441000,-500.0,0.00025384,2]
[425988592,1782077441000,-500.0,0.00025384,2]
[425988594,1782077441000,-500.0,0.00025384,2]
[425988599,1782077441000,-500.0,0.00025384,2]
[425988593,1782077441000,-500.0,0.00025384,2]
[425988591,1782077441000,-500.0,0.00025384,2]
[425988596,1782077441000,-500.0,0.00025384,2]
[425988601,1782077441000,-500.0,0.00025384,2]
[425988598,1782077441000,-500.0,0.00025384,2]
[425988595,1782077441000,-500.0,0.00025384,2]
[425988600,1782077441000,-500.0,0.00025384,2]
[425988597,1782077441000,-500.0,0.00025384,2]
[425988613,1782077441000,-500.0,0.00025384,2]
[425988602,1782077441000,-500.0,0.00025384,2]
[425988605,1782077441000,-500.0,0.00025384,2]
[425988608,1782077441000,-500.0,0.00025384,2]
[425988627,1782077441000,-500.0,0.00025384,2]
[425988638,1782077441000,-500.0,0.00025384,2]
[425988640,1782077441000,-500.0,0.00025384,2]
[425988669,1782077441000,-500.0,0.00025384,2]
[425988674,1782077441000,-500.0,0.00025384,2]
[425988673,1782077441000,-500.0,0.00025384,2]
[425988664,1782077441000,-500.0,0.00025384,2]
[425988672,1782077441000,-500.0,0.00025384,2]
[425988677,1782077441000,-500.0,0.00025384,2]
[425988676,1782077441000,-500.0,0.00025384,2]
[425988686,1782077441000,-500.0,0.00025384,2]
[425988687,1782077441000,-500.0,0.00025384,2]
[425988688,1782077441000,-500.0,0.00025384,2]
[425988685,1782077441000,-500.0,0.00025384,2]
[425988680,1782077441000,-500.0,0.00025384,2]
[425988681,1782077441000,-500.0,0.00025384,2]
[425988684,1782077441000,-500.0,0.00025384,2]
[425988682,1782077441000,-500.0,0.00025384,2]
[425988679,1782077441000,-500.0,0.00025384,2]
[425988683,1782077441000,-500.0,0.00025384,2]
[425988678,1782077441000,-500.0,0.00025384,2]
[425988689,1782077441000,-500.0,0.00025384,2]
[425988691,1782077441000,-500.0,0.00025384,2]
[425988692,1782077441000,-500.0,0.00025384,2]
[425988696,1782077441000,-500.0,0.00025384,2]
[425988690,1782077441000,-500.0,0.00025384,2]
[425988697,1782077441000,-500.0,0.00025384,2]
[425988694,1782077441000,-500.0,0.00025384,2]
[425988634,1782077441000,-500.0,0.00025384,2]
[425988695,1782077441000,-500.0,0.00025384,2]
[425988665,1782077441000,-500.0,0.00025384,2]
[425988668,1782077441000,-500.0,0.00025384,2]
[425988693,1782077441000,-500.0,0.00025384,2]
[425988670,1782077441000,-500.0,0.00025384,2]
[425988666,1782077441000,-500.0,0.00025384,2]
[425988644,1782077441000,-500.0,0.00025384,2]
[425988645,1782077441000,-500.0,0.00025384,2]
[425988639,1782077441000,-500.0,0.00025384,2]
[425988649,1782077441000,-500.0,0.00025384,2]
[425988648,1782077441000,-500.0,0.00025384,2]
[425988641,1782077441000,-500.0,0.00025384,2]
[425988642,1782077441000,-500.0,0.00025384,2]
[425988646,1782077441000,-500.0,0.00025384,2]
[425988647,1782077441000,-500.0,0.00025384,2]
[425988651,1782077441000,-500.0,0.00025384,2]
[425988659,1782077441000,-500.0,0.00025384,2]
[425988662,1782077441000,-500.0,0.00025384,2]
[425988643,1782077441000,-500.0,0.00025384,2]
[425988661,1782077441000,-500.0,0.00025384,2]
[425988671,1782077441000,-500.0,0.00025384,2]
[425988675,1782077441000,-500.0,0.00025384,2]
[425988667,1782077441000,-500.0,0.00025384,2]
[425988663,1782077441000,-500.0,0.00025384,2]
[425988660,1782077441000,-500.0,0.00025384,2]
[425988658,1782077441000,-500.0,0.00025384,2]
[425988655,1782077441000,-500.0,0.00025384,2]
[425988657,1782077441000,-500.0,0.00025384,2]
[425988654,1782077441000,-500.0,0.00025384,2]
[425988653,1782077441000,-500.0,0.00025384,2]
[425988652,1782077441000,-500.0,0.00025384,2]
[425988650,1782077441000,-500.0,0.00025384,2]
[425988656,1782077441000,-500.0,0.00025384,2]
[425988737,1782077442000,-500.0,0.00025384,2]
[425988734,1782077442000,-500.0,0.00025384,2]
[425988747,1782077442000,-500.0,0.00025384,2]
[425988735,1782077442000,-500.0,0.00025384,2]
[425988724,1782077442000,-500.0,0.00025384,2]
[425988731,1782077442000,-500.0,0.00025384,2]
[425988732,1782077442000,-500.0,0.00025384,2]
[425988726,1782077442000,-500.0,0.00025384,2]
[425988729,1782077442000,-500.0,0.00025384,2]
[425988728,1782077442000,-500.0,0.00025384,2]
[425988733,1782077442000,-500.0,0.00025384,2]
[425988736,1782077442000,-500.0,0.00025384,2]
[425988741,1782077442000,-500.0,0.00025384,2]
[425988745,1782077442000,-500.0,0.00025384,2]
[425988738,1782077442000,-500.0,0.00025384,2]
[425988739,1782077442000,-500.0,0.00025384,2]
[425988743,1782077442000,-500.0,0.00025384,2]
[425988752,1782077442000,-500.0,0.00025384,2]
[425988754,1782077442000,-500.0,0.00025384,2]
[425988759,1782077442000,-500.0,0.00025384,2]
[425988757,1782077442000,-500.0,0.00025384,2]
[425988750,1782077442000,-500.0,0.00025384,2]
[425988749,1782077442000,-500.0,0.00025384,2]
[425988751,1782077442000,-500.0,0.00025384,2]
[425988727,1782077442000,-500.0,0.00025384,2]
[425988748,1782077442000,-500.0,0.00025384,2]
[425988730,1782077442000,-500.0,0.00025384,2]
[425988707,1782077442000,-500.0,0.00025384,2]
[425988713,1782077442000,-500.0,0.00025384,2]
[425988753,1782077442000,-500.0,0.00025384,2]
[425988700,1782077442000,-500.0,0.00025384,2]
[425988698,1782077442000,-500.0,0.00025384,2]
[425988699,1782077442000,-500.0,0.00025384,2]
[425988702,1782077442000,-500.0,0.00025384,2]
[425988701,1782077442000,-500.0,0.00025384,2]
[425988705,1782077442000,-500.0,0.00025384,2]
[425988703,1782077442000,-500.0,0.00025384,2]
[425988704,1782077442000,-500.0,0.00025384,2]
[425988706,1782077442000,-500.0,0.00025384,2]
[425988710,1782077442000,-500.0,0.00025384,2]
[425988708,1782077442000,-500.0,0.00025384,2]
[425988711,1782077442000,-500.0,0.00025384,2]
[425988709,1782077442000,-500.0,0.00025384,2]
[425988714,1782077442000,-500.0,0.00025384,2]
[425988718,1782077442000,-500.0,0.00025384,2]
[425988716,1782077442000,-500.0,0.00025384,2]
[425988717,1782077442000,-500.0,0.00025384,2]
[425988720,1782077442000,-500.0,0.00025384,2]
[425988722,1782077442000,-500.0,0.00025384,2]
[425988712,1782077442000,-879.0,0.00025384,2]
[425988721,1782077442000,-500.0,0.00025384,2]
[425988723,1782077442000,-500.0,0.00025384,2]
[425988719,1782077442000,-500.0,0.00025384,2]
[425988715,1782077442000,-500.0,0.00025384,2]
[425988725,1782077442000,-500.0,0.00025384,2]
[425988756,1782077442000,-500.0,0.00025384,2]
[425988786,1782077442000,-500.0,0.00025384,2]
[425988762,1782077442000,-500.0,0.00025384,2]
[425988795,1782077442000,-500.0,0.00025384,2]
[425988799,1782077442000,-500.0,0.00025384,2]
[425988797,1782077442000,-500.0,0.00025384,2]
[425988796,1782077442000,-500.0,0.00025384,2]
[425988798,1782077442000,-500.0,0.00025384,2]
[425988804,1782077442000,-500.0,0.00025384,2]
[425988812,1782077442000,-500.0,0.00025384,2]
[425988805,1782077442000,-500.0,0.00025384,2]
[425988810,1782077442000,-500.0,0.00025384,2]
[425988807,1782077442000,-500.0,0.00025384,2]
[425988809,1782077442000,-500.0,0.00025384,2]
[425988814,1782077442000,-500.0,0.00025384,2]
[425988808,1782077442000,-500.0,0.00025384,2]
[425988811,1782077442000,-500.0,0.00025384,2]
[425988813,1782077442000,-500.0,0.00025384,2]
[425988815,1782077442000,-500.0,0.00025384,2]
[425988817,1782077442000,-500.0,0.00025384,2]
[425988816,1782077442000,-500.0,0.00025384,2]
[425988818,1782077442000,-500.0,0.00025384,2]
[425988824,1782077442000,-151.0,0.00025384,2]
[425988821,1782077442000,-151.0,0.00025384,2]
[425988820,1782077442000,-151.0,0.00025384,2]
[425988823,1782077442000,-151.0,0.00025384,2]
[425988819,1782077442000,-832.0,0.00025384,2]
[425988755,1782077442000,-500.0,0.00025384,2]
[425988802,1782077442000,-500.0,0.00025384,2]
[425988801,1782077442000,-500.0,0.00025384,2]
[425988806,1782077442000,-500.0,0.00025384,2]
[425988794,1782077442000,-500.0,0.00025384,2]
[425988800,1782077442000,-500.0,0.00025384,2]
[425988764,1782077442000,-500.0,0.00025384,2]
[425988766,1782077442000,-500.0,0.00025384,2]
[425988776,1782077442000,-500.0,0.00025384,2]
[425988778,1782077442000,-500.0,0.00025384,2]
[425988780,1782077442000,-500.0,0.00025384,2]
[425988777,1782077442000,-500.0,0.00025384,2]
[425988779,1782077442000,-500.0,0.00025384,2]
[425988769,1782077442000,-500.0,0.00025384,2]
[425988775,1782077442000,-500.0,0.00025384,2]
[425988773,1782077442000,-500.0,0.00025384,2]
[425988771,1782077442000,-500.0,0.00025384,2]
[425988782,1782077442000,-500.0,0.00025384,2]
[425988768,1782077442000,-500.0,0.00025384,2]
[425988784,1782077442000,-500.0,0.00025384,2]
[425988792,1782077442000,-500.0,0.00025384,2]
[425988781,1782077442000,-500.0,0.00025384,2]
[425988793,1782077442000,-500.0,0.00025384,2]
[425988803,1782077442000,-500.0,0.00025384,2]
[425988788,1782077442000,-500.0,0.00025384,2]
[425988791,1782077442000,-500.0,0.00025384,2]
[425988789,1782077442000,-500.0,0.00025384,2]
[425988785,1782077442000,-602.0,0.00025384,2]
[425988822,1782077442000,-222.12432,0.00025384,2]
[425988787,1782077442000,-500.0,0.00025384,2]
[425988783,1782077442000,-500.0,0.00025384,2]
[425988790,1782077442000,-500.0,0.00025384,2]
[425988843,1782077443000,-200.0,0.00025763,2]
[425988844,1782077443000,-3047.21,0.00025786,2]
[425988840,1782077443000,-306.02165953,0.00025743,2]
[425988847,1782077443000,-12845.3865031,0.00025806,2]
[425988845,1782077443000,-6554.89,0.00025786,2]
[425988846,1782077443000,-3552.72,0.00025786,2]
[425988848,1782077443000,-2091.0,0.00025838,5]
[425988851,1782077443000,-500.0,0.000259,9]
[425988853,1782077443000,-1917.5863683,0.00025923,2]
[425988852,1782077443000,-5528.0,0.000259,5]
[425988854,1782077443000,-288.50393753,0.00025938,3]
[425988862,1782077443000,-151.0,0.00026117,2]
[425988842,1782077443000,-356.43950367,0.00025743,2]
[425988858,1782077443000,-1690.61171439,0.00026005,2]
[425988850,1782077443000,-1690.61171439,0.00025886,2]
[425988841,1782077443000,-151.0,0.00025743,2]
[425988827,1782077443000,-3538.02930585,0.000255,7]
[425988839,1782077443000,-217.15233878,0.00025743,2]
[425988855,1782077443000,-1690.61171439,0.00025992,2]
[425988825,1782077443000,-206.0,0.00025416,2]
[425988826,1782077443000,-4301.13180098,0.000255,7]
[425988833,1782077443000,-851.0,0.00025635,10]
[425988830,1782077443000,-151.0,0.000255,2]
[425988828,1782077443000,-6881.77889317,0.000255,7]
[425988838,1782077443000,-157.03199331,0.00025743,2]
[425988829,1782077443000,-216.32317309,0.000255,7]
[425988832,1782077443000,-726.0,0.00025631,2]
[425988834,1782077443000,-1690.61171439,0.00025636,2]
[425988836,1782077443000,-158.0,0.00025692,2]
[425988835,1782077443000,-1690.61171439,0.0002568,2]
[425988837,1782077443000,-155.38157922,0.00025743,2]
[425988849,1782077443000,-2895.0,0.00025838,5]
[425988831,1782077443000,-929.0,0.00025631,2]
[425988860,1782077443000,-11795.01599014,0.00026079,2]
[425988857,1782077443000,-550.0,0.00026,2]
[425988856,1782077443000,-9619.22521365,0.00025997,2]
[425988880,1782077443000,-602.87,0.00026499,2]
[425988887,1782077443000,-500.0,0.00026499,2]
[425988882,1782077443000,-500.0,0.00026499,2]
[425988879,1782077443000,-260.14002293,0.00026499,2]
[425988881,1782077443000,-602.87,0.00026499,2]
[425988889,1782077443000,-552.13,0.00026499,2]
[425988888,1782077443000,-500.0,0.00026499,2]
[425988884,1782077443000,-507.25767885,0.00026499,2]
[425988883,1782077443000,-500.0,0.00026499,2]
[425988891,1782077443000,-15392.40908558,0.000265,5]
[425988890,1782077443000,-12395.29,0.000265,7]
[425988892,1782077443000,-500.0,0.00026499,2]
[425988863,1782077443000,-350.0,0.00026152,2]
[425988893,1782077443000,-13.0,0.000265,5]
[425988886,1782077443000,-500.0,0.00026499,2]
[425988878,1782077443000,-151.0,0.00026499,2]
[425988885,1782077443000,-500.0,0.00026499,2]
[425988876,1782077443000,-265.51971222,0.00026397,2]
[425988859,1782077443000,-552.13,0.00026063,2]
[425988877,1782077443000,-412.41919159,0.000264,2]
[425988861,1782077443000,-151.0,0.00026117,2]
[425988875,1782077443000,-439.343544,0.00026359,2]
[425988873,1782077443000,-346.525447,0.00026359,2]
[425988874,1782077443000,-439.54764,0.00026359,2]
[425988864,1782077443000,-1690.61171439,0.0002623,2]
[425988865,1782077443000,-1690.61171439,0.00026234,2]
[425988866,1782077443000,-3000.0,0.00026235,3]
[425988870,1782077443000,-177.1,0.00026296,2]
[425988868,1782077443000,-216.53267239,0.00026291,2]
[425988869,1782077443000,-356.43950367,0.00026291,2]
[425988872,1782077443000,-357.533054,0.00026355,2]
[425988867,1782077443000,-155.38157922,0.00026291,2]
[425988871,1782077443000,-1690.61171439,0.00026344,2]
[425988938,1782077444000,-800.0,0.000268,9]
[425988934,1782077444000,-237.0,0.0002672,5]
[425988926,1782077444000,-156.117302,0.00026592,2]
[425988912,1782077444000,-251.07516,0.000265,2]
[425988935,1782077444000,-1500.0,0.00026748,10]
[425988949,1782077444000,-500.0,0.00026929,2]
[425988920,1782077444000,-6081.0,0.00026561,2]
[425988937,1782077444000,-200.0,0.00026765,2]
[425988922,1782077444000,-196.72345773,0.00026575,7]
[425988929,1782077444000,-1690.61171439,0.00026653,2]
[425988933,1782077444000,-1690.61171439,0.0002669,2]
[425988930,1782077444000,-1394.0,0.00026656,2]
[425988927,1782077444000,-150.0,0.000266,2]
[425988925,1782077444000,-151.0,0.00026592,2]
[425988928,1782077444000,-9619.22521365,0.00026613,2]
[425988932,1782077444000,-500.0,0.00026679,2]
[425988931,1782077444000,-1089.0,0.00026656,2]
[425988939,1782077444000,-1690.61171439,0.00026813,2]
[425988951,1782077444000,-500.0,0.00026929,2]
[425988944,1782077444000,-1000.0,0.000269,9]
[425988943,1782077444000,-1690.61171439,0.0002689,2]
[425988942,1782077444000,-1690.61171439,0.00026846,2]
[425988924,1782077444000,-151.0,0.00026592,2]
[425988936,1782077444000,-1690.61171439,0.0002676,2]
[425988919,1782077444000,-3560.0,0.00026561,2]
[425988899,1782077444000,-50000.0,0.000265,5]
[425988921,1782077444000,-7703.715475,0.00026575,2]
[425988941,1782077444000,-356.43950367,0.00026839,2]
[425988895,1782077444000,-382.99709349,0.0002649,2]
[425988894,1782077444000,-155.3816,0.00024098,2]
[425988896,1782077444000,-34594.59091442,0.000265,5]
[425988909,1782077444000,-151.0,0.000265,2]
[425988898,1782077444000,-50000.0,0.000265,7]
[425988910,1782077444000,-151.0,0.000265,2]
[425988908,1782077444000,-151.0,0.000265,2]
[425988901,1782077444000,-50000.0,0.000265,5]
[425988897,1782077444000,-50000.0,0.000265,5]
[425988905,1782077444000,-300.0,0.000265,3]
[425988902,1782077444000,-200.0,0.000265,2]
[425988900,1782077444000,-50000.0,0.000265,5]
[425988903,1782077444000,-300.0,0.000265,3]
[425988904,1782077444000,-300.0,0.000265,3]
[425988906,1782077444000,-300.0,0.000265,3]
[425988907,1782077444000,-300.0,0.000265,3]
[425988911,1782077444000,-177.986,0.000265,90]
[425988914,1782077444000,-285.0,0.00026548,7]
[425988917,1782077444000,-1360.0,0.00026561,2]
[425988913,1782077444000,-200.0,0.00026516,2]
[425988916,1782077444000,-1276.0,0.00026561,2]
[425988918,1782077444000,-1229.0,0.00026561,2]
[425988923,1782077444000,-9999.99,0.00026591,2]
[425988945,1782077444000,-1690.61171439,0.00026914,2]
[425988915,1782077444000,-1690.61171439,0.00026558,2]
[425988946,1782077444000,-500.0,0.00026929,2]
[425988979,1782077444000,-11795.01599014,0.00026962,2]
[425988977,1782077444000,-151.58,0.00026959,2]
[425988972,1782077444000,-151.26,0.00026939,2]
[425988981,1782077444000,-412.41919156,0.00026983,2]
[425988991,1782077444000,-9619.22521365,0.00027229,2]
[425988992,1782077444000,-179.57266691,0.00027253,2]
[425988980,1782077444000,-1690.61171439,0.00026981,2]
[425988983,1782077444000,-200.0,0.00027033,2]
[425988982,1782077444000,-186.09,0.00027012,2]
[425988984,1782077444000,-1690.61171439,0.00027114,2]
[425988987,1782077444000,-501.0,0.00027137,2]
[425988976,1782077444000,-151.73,0.00026959,2]
[425988986,1782077444000,-413.0,0.00027123,2]
[425988985,1782077444000,-10039.00508638,0.00027123,2]
[425988989,1782077444000,-1690.61171439,0.00027184,2]
[425988993,1782077444000,-150.0,0.00027265,2]
[425988996,1782077444000,-250.0,0.00027282,9]
[425988995,1782077444000,-250.0,0.00027282,9]
[425988998,1782077444000,-552.13,0.00027296,2]
[425988994,1782077444000,-200.0,0.00027269,2]
[425988997,1782077444000,-150.0,0.00027295,2]
[425989000,1782077444000,-291.72610934,0.00027297,2]
[425988999,1782077444000,-10000.0,0.00027297,2]
[425988947,1782077444000,-500.0,0.00026929,2]
[425988988,1782077444000,-200.0,0.00027177,2]
[425988971,1782077444000,-151.0,0.00026939,2]
[425988990,1782077444000,-1778.29107296,0.00027217,5]
[425988978,1782077444000,-151.0,0.00026959,2]
[425988975,1782077444000,-151.57,0.00026959,2]
[425988950,1782077444000,-500.0,0.00026929,2]
[425988940,1782077444000,-155.38157922,0.00026839,2]
[425988953,1782077444000,-500.0,0.00026929,2]
[425988965,1782077444000,-500.0,0.00026929,2]
[425988963,1782077444000,-500.0,0.00026929,2]
[425988964,1782077444000,-500.0,0.00026929,2]
[425988955,1782077444000,-500.0,0.00026929,2]
[425988954,1782077444000,-500.0,0.00026929,2]
[425988952,1782077444000,-500.0,0.00026929,2]
[425988956,1782077444000,-500.0,0.00026929,2]
[425988958,1782077444000,-500.0,0.00026929,2]
[425988948,1782077444000,-500.0,0.00026929,2]
[425988957,1782077444000,-500.0,0.00026929,2]
[425988974,1782077444000,-151.0,0.00026959,2]
[425988970,1782077444000,-151.0,0.00026939,2]
[425988973,1782077444000,-151.0,0.00026939,2]
[425988969,1782077444000,-151.0,0.00026939,2]
[425988968,1782077444000,-151.0,0.00026939,2]
[425988967,1782077444000,-151.0,0.00026939,2]
[425988962,1782077444000,-500.0,0.00026929,2]
[425988960,1782077444000,-500.0,0.00026929,2]
[425988961,1782077444000,-500.0,0.00026929,2]
[425988959,1782077444000,-500.0,0.00026929,2]
[425988966,1782077444000,-1917.5863683,0.00026929,2]
[425989040,1782077445000,-500.0,0.00027396,2]
[425989043,1782077445000,-170.260492,0.00027397,2]
[425989038,1782077445000,-552.26235663,0.00027396,2]
[425989037,1782077445000,-552.13,0.00027396,2]
[425989034,1782077445000,-552.13,0.00027396,2]
[425989035,1782077445000,-552.13,0.00027396,2]
[425989048,1782077445000,-500.0,0.00027397,2]
[425989046,1782077445000,-500.0,0.00027397,2]
[425989045,1782077445000,-500.0,0.00027397,2]
[425989042,1782077445000,-156.942244,0.00027397,2]
[425989027,1782077445000,-602.87,0.00027396,2]
[425989036,1782077445000,-552.13,0.00027396,2]
[425989044,1782077445000,-161.00287,0.00027397,2]
[425989062,1782077445000,-500.0,0.00027397,2]
[425989039,1782077445000,-500.0,0.00027396,2]
[425989050,1782077445000,-500.0,0.00027397,2]
[425989060,1782077445000,-500.0,0.00027397,2]
[425989061,1782077445000,-500.0,0.00027397,2]
[425989025,1782077445000,-602.87,0.00027396,2]
[425989063,1782077445000,-500.0,0.00027397,2]
[425989049,1782077445000,-500.0,0.00027397,2]
[425989053,1782077445000,-500.0,0.00027397,2]
[425989064,1782077445000,-500.0,0.00027397,2]
[425989052,1782077445000,-503.44622977,0.00027397,2]
[425989051,1782077445000,-500.0,0.00027397,2]
[425989055,1782077445000,-500.0,0.00027397,2]
[425989058,1782077445000,-500.0,0.00027397,2]
[425989041,1782077445000,-36930.321911,0.00027397,2]
[425989033,1782077445000,-552.13,0.00027396,2]
[425989005,1782077445000,-500.0,0.00027395,2]
[425989029,1782077445000,-505.19198669,0.00027396,2]
[425989004,1782077445000,-3000.0,0.0002739,3]
[425989002,1782077445000,-155.38157922,0.00027387,2]
[425989003,1782077445000,-356.43950367,0.00027387,2]
[425989006,1782077445000,-500.0,0.00027395,2]
[425989057,1782077445000,-500.0,0.00027397,2]
[425989001,1782077445000,-200.0,0.00027303,2]
[425989018,1782077445000,-692.21461105,0.00027396,2]
[425989008,1782077445000,-692.21461106,0.00027396,2]
[425989009,1782077445000,-692.21461106,0.00027396,2]
[425989019,1782077445000,-692.21461105,0.00027396,2]
[425989020,1782077445000,-692.21461105,0.00027396,2]
[425989010,1782077445000,-692.21461106,0.00027396,2]
[425989007,1782077445000,-500.0,0.00027395,2]
[425989031,1782077445000,-386.38329171,0.00027396,2]
[425989011,1782077445000,-692.21461106,0.00027396,2]
[425989015,1782077445000,-692.21461105,0.00027396,2]
[425989017,1782077445000,-692.21461105,0.00027396,2]
[425989014,1782077445000,-692.21461105,0.00027396,2]
[425989013,1782077445000,-692.21461105,0.00027396,2]
[425989016,1782077445000,-692.21461105,0.00027396,2]
[425989024,1782077445000,-602.87,0.00027396,2]
[425989021,1782077445000,-692.21461105,0.00027396,2]
[425989023,1782077445000,-602.87,0.00027396,2]
[425989022,1782077445000,-602.87,0.00027396,2]
[425989026,1782077445000,-602.87,0.00027396,2]
[425989028,1782077445000,-603.09,0.00027396,2]
[425989030,1782077445000,-500.0,0.00027396,2]
[425989032,1782077445000,-150.0,0.00027396,20]
[425989012,1782077445000,-692.21461105,0.00027396,2]
[425989059,1782077445000,-500.0,0.00027397,2]
[425989054,1782077445000,-242.5539186,0.00027397,2]
[425989076,1782077445000,-500.0,0.00027397,2]
[425989105,1782077445000,-500.0,0.00027397,2]
[425989113,1782077445000,-500.0,0.00027397,2]
[425989119,1782077445000,-500.0,0.00027397,2]
[425989115,1782077445000,-500.0,0.00027397,2]
[425989117,1782077445000,-520.71,0.00027397,2]
[425989121,1782077445000,-500.0,0.00027397,2]
[425989123,1782077445000,-928.87,0.00027397,2]
[425989129,1782077445000,-500.0,0.00027397,2]
[425989125,1782077445000,-1214.69,0.00027397,2]
[425989127,1782077445000,-500.0,0.00027397,2]
[425989131,1782077445000,-500.0,0.00027397,2]
[425989141,1782077445000,-500.0,0.00027397,2]
[425989136,1782077445000,-160.0,0.00027397,2]
[425989102,1782077445000,-532.65,0.00027397,2]
[425989135,1782077445000,-1029.89,0.00027397,2]
[425989137,1782077445000,-500.0,0.00027397,2]
[425989138,1782077445000,-500.0,0.00027397,2]
[425989140,1782077445000,-500.0,0.00027397,2]
[425989139,1782077445000,-500.0,0.00027397,2]
[425989143,1782077445000,-500.0,0.00027397,2]
[425989145,1782077445000,-500.0,0.00027397,2]
[425989144,1782077445000,-509.73381579,0.00027397,2]
[425989147,1782077445000,-500.0,0.00027397,2]
[425989146,1782077445000,-500.0,0.00027397,2]
[425989149,1782077445000,-500.0,0.00027397,2]
[425989148,1782077445000,-500.0,0.00027397,2]
[425989150,1782077445000,-500.0,0.00027397,2]
[425989066,1782077445000,-500.0,0.00027397,2]
[425989133,1782077445000,-501.68,0.00027397,2]
[425989100,1782077445000,-500.0,0.00027397,2]
[425989142,1782077445000,-500.0,0.00027397,2]
[425989096,1782077445000,-500.0,0.00027397,2]
[425989098,1782077445000,-500.0,0.00027397,2]
[425989065,1782077445000,-500.0,0.00027397,2]
[425989067,1782077445000,-500.0,0.00027397,2]
[425989070,1782077445000,-500.0,0.00027397,2]
[425989068,1782077445000,-191.82869199,0.00027397,2]
[425989077,1782077445000,-500.0,0.00027397,2]
[425989074,1782077445000,-500.0,0.00027397,2]
[425989069,1782077445000,-500.0,0.00027397,2]
[425989072,1782077445000,-500.0,0.00027397,2]
[425989071,1782077445000,-2575.79,0.00027397,2]
[425989075,1782077445000,-500.0,0.00027397,2]
[425989073,1782077445000,-500.0,0.00027397,2]
[425989079,1782077445000,-559.56946431,0.00027397,2]